fUSD/lending_fUSD_20260624
["ID","MTS","AMOUNT","RATE_DAILY","PERIOD"]
[426280339,1782238190000,-500.0,5.808e-05,2]
[426280346,1782238190000,-350.01365114,5.808e-05,2]
[426280340,1782238190000,-500.0,5.808e-05,2]
[426280341,1782238190000,-500.0,5.808e-05,2]
[426280345,1782238190000,-500.0,5.808e-05,2]
[426280344,1782238190000,-500.0,5.808e-05,2]
[426280343,1782238190000,-235.02576625,5.808e-05,2]
[426280342,1782238190000,-264.97423375,5.808e-05,2]
[426280352,1782238231000,-149.98634886,5.808e-05,2]
[426280369,1782238232000,-500.0,5.808e-05,2]
[426280371,1782238232000,-500.0,5.808e-05,2]
[426280367,1782238232000,-500.0,5.808e-05,2]
[426280368,1782238232000,-500.0,5.808e-05,2]
[426280365,1782238232000,-500.0,5.808e-05,2]
[426280366,1782238232000,-500.0,5.808e-05,2]
[426280363,1782238232000,-500.0,5.808e-05,2]
[426280364,1782238232000,-500.0,5.808e-05,2]
[426280361,1782238232000,-39.73649619,5.808e-05,2]
[426280358,1782238232000,-500.0,5.808e-05,2]
[426280359,1782238232000,-8.0,5.808e-05,2]
[426280360,1782238232000,-492.0,5.808e-05,2]
[426280370,1782238232000,-500.0,5.808e-05,2]
[426280362,1782238232000,-460.26350381,5.808e-05,2]
[426280374,1782238232000,-500.0,5.808e-05,2]
[426280372,1782238232000,-500.0,5.808e-05,2]
[426280373,1782238232000,-500.0,5.808e-05,2]
[426280385,1782238232000,-500.0,5.808e-05,2]
[426280387,1782238232000,-500.0,5.808e-05,2]
[426280388,1782238232000,-500.0,5.808e-05,2]
[426280386,1782238232000,-500.0,5.808e-05,2]
[426280380,1782238232000,-500.0,5.808e-05,2]
[426280381,1782238232000,-500.0,5.808e-05,2]
[426280383,1782238232000,-500.0,5.808e-05,2]
[426280376,1782238232000,-500.0,5.808e-05,2]
[426280389,1782238232000,-500.0,5.808e-05,2]
[426280378,1782238232000,-500.0,5.808e-05,2]
[426280379,1782238232000,-500.0,5.808e-05,2]
[426280377,1782238232000,-182.904967,5.808e-05,2]
[426280384,1782238232000,-500.0,5.808e-05,2]
[426280375,1782238232000,-591.7328665,5.808e-05,2]
[426280382,1782238232000,-500.0,5.808e-05,2]
[426280404,1782238233000,-250.0,5.808e-05,2]
[426280407,1782238233000,-16919.47904946,5.813e-05,2]
[426280408,1782238233000,-500.0,5.813e-05,2]
[426280413,1782238233000,-3309.2976225,6.007e-05,2]
[426280412,1782238233000,-1000.0,6.007e-05,2]
[426280410,1782238233000,-260.52290791,5.813e-05,2]
[426280406,1782238233000,-199.76051328,5.811e-05,2]
[426280411,1782238233000,-167.04,5.946e-05,2]
[426280419,1782238233000,-5040.83,6.349e-05,2]
[426280415,1782238233000,-20303.00253242,6.008e-05,2]
[426280409,1782238233000,-500.0,5.813e-05,2]
[426280403,1782238233000,-500.0,5.808e-05,2]
[426280402,1782238233000,-500.0,5.808e-05,2]
[426280401,1782238233000,-500.0,5.808e-05,2]
[426280414,1782238233000,-965.37033098,6.007e-05,2]
[426280399,1782238233000,-500.0,5.808e-05,2]
[426280400,1782238233000,-500.0,5.808e-05,2]
[426280398,1782238233000,-500.0,5.808e-05,2]
[426280396,1782238233000,-500.0,5.808e-05,2]
[426280390,1782238233000,-500.0,5.808e-05,2]
[426280393,1782238233000,-500.0,5.808e-05,2]
[426280395,1782238233000,-500.0,5.808e-05,2]
[426280391,1782238233000,-500.0,5.808e-05,2]
[426280394,1782238233000,-500.0,5.808e-05,2]
[426280405,1782238233000,-337.03881497,5.81e-05,2]
[426280416,1782238233000,-1533.20988334,6.236e-05,2]
[426280392,1782238233000,-500.0,5.808e-05,2]
[426280417,1782238233000,-187.26,6.244e-05,2]
[426280421,1782238233000,-250.0,6.39e-05,2]
[426280441,1782238233000,-1059.05182637,6.55e-05,2]
[426280443,1782238233000,-316533.56054573,6.551e-05,2]
[426280445,1782238233000,-62925.33146706,6.551e-05,2]
[426280444,1782238233000,-52642.79679608,6.551e-05,2]
[426280442,1782238233000,-500.0,6.551e-05,2]
[426280440,1782238233000,-216.39158367,6.5e-05,2]
[426280438,1782238233000,-208.63313888,6.486e-05,2]
[426280439,1782238233000,-150.0,6.5e-05,2]
[426280437,1782238233000,-2252.48,6.446e-05,2]
[426280435,1782238233000,-9999.99,6.446e-05,2]
[426280436,1782238233000,-150.99,6.446e-05,2]
[426280432,1782238233000,-157.88,6.446e-05,2]
[426280397,1782238233000,-416.24714408,5.808e-05,2]
[426280428,1782238233000,-9999.99,6.446e-05,2]
[426280423,1782238233000,-12042.85,6.446e-05,2]
[426280425,1782238233000,-1200.12,6.446e-05,2]
[426280422,1782238233000,-299.99,6.446e-05,2]
[426280424,1782238233000,-9999.99,6.446e-05,2]
[426280426,1782238233000,-1658.46,6.446e-05,2]
[426280418,1782238233000,-413.82,6.349e-05,2]
[426280433,1782238233000,-4999.99,6.446e-05,2]
[426280431,1782238233000,-1494.44,6.446e-05,2]
[426280434,1782238233000,-3757.94,6.446e-05,2]
[426280420,1782238233000,-250.0,6.389e-05,2]
[426280430,1782238233000,-436.49,6.446e-05,2]
[426280427,1782238233000,-999.99,6.446e-05,2]
[426280429,1782238233000,-9999.99,6.446e-05,2]
[426280452,1782238238000,-2812.00399704,6.551e-05,2]
[426280450,1782238238000,-625.56043531,6.551e-05,2]
[426280451,1782238238000,-447.52005833,6.551e-05,2]
[426280448,1782238238000,-1158.37900695,6.446e-05,2]
[426280446,1782238238000,-299.99,6.446e-05,2]
[426280447,1782238238000,-405.64099305,6.446e-05,2]
[426280449,1782238238000,-1304.7071354,6.551e-05,2]
[426281118,1782238251000,-577.08643152,6.551e-05,2]
[426281121,1782238252000,-401.195,6.551e-05,2]
[426281120,1782238252000,-405.28705655,6.551e-05,2]
[426281119,1782238252000,-252.76690883,6.551e-05,2]
[426281122,1782238252000,-1687.50735566,6.551e-05,2]
[426281124,1782238252000,-361.3572364,6.551e-05,2]
[426281125,1782238252000,-2403.07793093,6.551e-05,2]
[426281126,1782238252000,-280.70426985,6.551e-05,2]
[426281128,1782238252000,-773.0,6.551e-05,2]
[426281127,1782238252000,-4116.71023676,6.551e-05,2]
[426281123,1782238252000,-4150.0,6.551e-05,2]
[426281129,1782238253000,-4728.00000025,6.551e-05,2]
[426281130,1782238253000,-3010.25633591,6.551e-05,2]
[426281131,1782238253000,-822.99997,6.551e-05,2]
[426281133,1782238266000,-577.08643152,6.551e-05,2]
[426281134,1782238279000,-623.74,6.486e-05,2]
[426281135,1782238293000,-554.26238394,6.486e-05,2]
[426281139,1782238458000,1258.23416207,5.988e-05,2]
[426281138,1782238458000,368.23658193,5.988e-05,2]
[426281137,1782238458000,2000.0,5.988e-05,2]
[426281136,1782238458000,344.299256,5.988e-05,2]
[426281141,1782238474000,103.06416207,5.994e-05,2]
[426281140,1782238474000,741.76583793,5.994e-05,2]
[426281143,1782238501000,421.15,5.949e-05,2]
[426281144,1782238527000,-500.0,6.108e-05,2]
[426281145,1782238541000,-115.68,6.108e-05,2]
[426281146,1782238550000,1100.0,9.49e-05,5]
[426281147,1782238594000,-680.81,6.346e-05,2]
[426281148,1782238609000,-319.19,6.346e-05,2]
[426281150,1782238662000,171.82,4.632e-05,2]
[426281149,1782238662000,-680.81,6.206e-05,2]
[426281151,1782238676000,-623.74,6.206e-05,2]
[426281152,1782238690000,-623.74,6.206e-05,2]
[426281153,1782238704000,-500.0,6.206e-05,2]
[426281154,1782238705000,447.87,5.774e-05,2]
[426281155,1782238719000,-500.0,6.206e-05,2]
[426281156,1782238733000,-2435.53989,6.206e-05,2]
[426281157,1782238746000,577.08,5.809e-05,2]
[426281159,1782238819000,1761.04264292,5.719e-05,2]
[426281158,1782238819000,1898.31735708,5.719e-05,2]
[426281161,1782238870000,1579.77916207,5.687e-05,2]
[426281160,1782238870000,272.64083793,5.687e-05,2]
[426281162,1782238902000,-150.0,6.205e-05,2]
[426281163,1782238956000,-500.0,6.205e-05,2]
[426281164,1782238958000,200.0,5.664e-05,2]
[426281166,1782239010000,-183.77967221,5.935e-05,2]
[426281167,1782239064000,-150.0,6.203e-05,2]
[426281168,1782239109000,-174.20321451,6.203e-05,2]
[426281169,1782239162000,-500.0,6.203e-05,2]
[426281170,1782239163000,874.0,9.49e-05,5]
[426281173,1782239216000,-500.0,6.202e-05,2]
[426281175,1782239217000,-9.83817094,6.202e-05,2]
[426281174,1782239217000,-155.95544025,6.202e-05,2]
[426281176,1782239248000,1500.0,9e-05,3]
[426281177,1782239256000,74.76708259,5.655e-05,2]
[426281178,1782239269000,-86.38291741,5.655e-05,2]
[426281179,1782239296000,-189.16783178,5.928e-05,2]
[426281180,1782239296000,-150.0,6.201e-05,2]
[426281181,1782239296000,-250.0,6.202e-05,2]
[426281182,1782239296000,-290.83191598,6.202e-05,2]
[426281183,1782239296000,-500.0,6.202e-05,2]
[426281184,1782239296000,-544.99833044,6.202e-05,2]
[426281188,1782239297000,-500.0,6.202e-05,2]
[426281189,1782239297000,-261.84557521,6.202e-05,2]
[426281187,1782239297000,-500.0,6.202e-05,2]
[426281191,1782239297000,-500.0,6.202e-05,2]
[426281190,1782239297000,-238.15442479,6.202e-05,2]
[426281192,1782239297000,-500.0,6.202e-05,2]
[426281194,1782239297000,-461.55788621,6.202e-05,2]
[426281185,1782239297000,-500.0,6.202e-05,2]
[426281195,1782239297000,-500.0,6.202e-05,2]
[426281193,1782239297000,-185.90773705,6.202e-05,2]
[426281202,1782239297000,-434.51427179,6.202e-05,2]
[426281200,1782239297000,-500.0,6.202e-05,2]
[426281199,1782239297000,-21.91718725,6.202e-05,2]
[426281186,1782239297000,-176.85920739,6.202e-05,2]
[426281196,1782239297000,-500.0,6.202e-05,2]
[426281201,1782239297000,-500.0,6.202e-05,2]
[426281197,1782239297000,-500.0,6.202e-05,2]
[426281198,1782239297000,-478.08281275,6.202e-05,2]
[426281203,1782239323000,-65.48572821,6.202e-05,2]
[426281206,1782239324000,-445.36424934,6.206e-05,2]
[426281205,1782239324000,-4047.37960442,6.206e-05,2]
[426281204,1782239324000,-4047.37960442,6.206e-05,2]
[426281208,1782239345000,-4218.18207358,6.206e-05,2]
[426281207,1782239345000,-3450.2214348,6.206e-05,2]
[426281209,1782239360000,-908.796826,6.206e-05,2]
[426281210,1782239376000,-1028.80650673,6.206e-05,2]
[426281212,1782239377000,-2547.19497732,6.206e-05,2]
[426281211,1782239377000,-4371.55014375,6.206e-05,2]
[426281214,1782239395000,-1320.70009813,6.206e-05,2]
[426281213,1782239395000,-4509.92504617,6.206e-05,2]
[426281216,1782239431000,-35.87297376,5.686e-05,2]
[426281215,1782239431000,-253.39702624,5.686e-05,2]
[426281218,1782239432000,-500.0,6.201e-05,2]
[426281219,1782239432000,-500.0,6.201e-05,2]
[426281220,1782239432000,-500.0,6.201e-05,2]
[426281223,1782239432000,-500.0,6.201e-05,2]
[426281221,1782239432000,-500.0,6.201e-05,2]
[426281232,1782239432000,-500.0,6.201e-05,2]
[426281222,1782239432000,-500.0,6.201e-05,2]
[426281224,1782239432000,-500.0,6.201e-05,2]
[426281225,1782239432000,-500.0,6.201e-05,2]
[426281227,1782239432000,-500.0,6.201e-05,2]
[426281228,1782239432000,-500.0,6.201e-05,2]
[426281229,1782239432000,-500.0,6.201e-05,2]
[426281231,1782239432000,-500.0,6.201e-05,2]
[426281217,1782239432000,-500.0,6.201e-05,2]
[426281226,1782239432000,-500.0,6.201e-05,2]
[426281230,1782239432000,-500.0,6.201e-05,2]
[426281235,1782239432000,-472.6107128,6.201e-05,2]
[426281247,1782239432000,-9882.04749825,6.206e-05,2]
[426281246,1782239432000,-1254.41808677,6.206e-05,2]
[426281244,1782239432000,-191405.66954534,6.206e-05,2]
[426281245,1782239432000,-119668.44330098,6.206e-05,2]
[426281243,1782239432000,-410.46906084,6.205e-05,2]
[426281242,1782239432000,-500.0,6.205e-05,2]
[426281233,1782239432000,-500.0,6.201e-05,2]
[426281241,1782239432000,-150.0,6.205e-05,2]
[426281239,1782239432000,-500.0,6.201e-05,2]
[426281234,1782239432000,-41.07735652,6.201e-05,2]
[426281238,1782239432000,-500.0,6.201e-05,2]
[426281236,1782239432000,-500.0,6.201e-05,2]
[426281237,1782239432000,-500.0,6.201e-05,2]
[426281240,1782239432000,-500.0,6.201e-05,2]
[426281312,1782239440000,-671.43176771,6.206e-05,2]
[426281280,1782239440000,-32027.94,6.206e-05,2]
[426281462,1782239446000,-2974.11301393,6.423e-05,2]
[426281461,1782239446000,-12940.45850452,6.423e-05,2]
[426281456,1782239446000,-349.0,6.215e-05,2]
[426281459,1782239446000,-161.15,6.362e-05,2]
[426281458,1782239446000,-150.0,6.329e-05,2]
[426281457,1782239446000,-150.0,6.267e-05,2]
[426281455,1782239446000,-61186.20489855,6.206e-05,2]
[426281453,1782239446000,-3007.01444774,6.206e-05,2]
[426281460,1782239446000,-150.0,6.391e-05,2]
[426281467,1782239449000,-675.84200722,6.423e-05,2]
[426281470,1782239450000,-475.75052235,6.423e-05,2]
[426281471,1782239450000,-341.68676165,6.423e-05,2]
[426281476,1782239639000,-150.0,6.198e-05,2]
[426281477,1782239693000,-170.58353837,6.198e-05,2]
[426281478,1782239746000,-200.0,6.024e-05,2]
[426281479,1782239761000,2393.0,8.895e-05,5]
[426281480,1782239801000,-500.0,6.041e-05,2]
[426281481,1782239816000,-884.94,6.041e-05,2]
[426281482,1782239867000,-150.0,6.197e-05,2]
[426281483,1782239921000,-170.0,5.98e-05,2]
[426281484,1782239975000,-648.60202756,5.939e-05,2]
[426281485,1782239989000,-351.39797244,5.939e-05,2]
[426281487,1782239991000,3142.05075417,5.602e-05,2]
[426281486,1782239991000,3423.85509072,5.602e-05,2]
[426281488,1782239991000,3923.47058714,5.602e-05,2]
[426281489,1782240042000,-392.50005692,5.602e-05,2]
[426281490,1782240229000,-392.50005692,5.526e-05,2]
[426281491,1782240282000,-503.17,5.307e-05,2]
[426281492,1782240336000,-317.84,5.307e-05,2]
[426281493,1782240370000,1911.0,6.964e-05,5]
[426281494,1782240390000,-1020.13,5.451e-05,2]
[426281495,1782240443000,-353.96,5.5e-05,2]
[426281496,1782240497000,-160.0,5.452e-05,2]
[426281497,1782240550000,-500.0,5.523e-05,2]
[426281502,1782240557000,-500.0,5.523e-05,2]
[426281504,1782240557000,-500.0,5.523e-05,2]
[426281503,1782240557000,-500.0,5.523e-05,2]
[426281501,1782240557000,-500.0,5.523e-05,2]
[426281499,1782240557000,-500.0,5.523e-05,2]
[426281500,1782240557000,-500.0,5.523e-05,2]
[426281498,1782240557000,-298.89563988,5.523e-05,2]
[426281506,1782240558000,-334.3624759,5.523e-05,2]
[426281507,1782240558000,-165.6375241,5.523e-05,2]
[426281505,1782240558000,-500.0,5.523e-05,2]
[426281508,1782240558000,-500.0,5.523e-05,2]
[426281510,1782240558000,-469.74277504,5.523e-05,2]
[426281509,1782240558000,-500.0,5.523e-05,2]
[426281520,1782240563000,-195.16838391,5.523e-05,2]
[426281519,1782240563000,-500.0,5.523e-05,2]
[426281518,1782240563000,-500.0,5.523e-05,2]
[426281517,1782240563000,-500.0,5.523e-05,2]
[426281514,1782240563000,-500.0,5.523e-05,2]
[426281516,1782240563000,-500.0,5.523e-05,2]
[426281515,1782240563000,-549.17857113,5.523e-05,2]
[426281513,1782240563000,-500.0,5.523e-05,2]
[426281512,1782240563000,-500.0,5.523e-05,2]
[426281511,1782240563000,-30.25722496,5.523e-05,2]
[426281521,1782240582000,-304.83161609,5.523e-05,2]
[426281522,1782240582000,-500.0,5.523e-05,2]
[426281523,1782240582000,-500.0,5.523e-05,2]
[426281524,1782240582000,-500.0,5.523e-05,2]
[426281532,1782240583000,-500.0,5.523e-05,2]
[426281533,1782240583000,-480.90485774,5.523e-05,2]
[426281531,1782240583000,-500.0,5.523e-05,2]
[426281530,1782240583000,-56.20073201,5.523e-05,2]
[426281529,1782240583000,-443.79926799,5.523e-05,2]
[426281528,1782240583000,-500.0,5.523e-05,2]
[426281527,1782240583000,-500.0,5.523e-05,2]
[426281526,1782240583000,-500.0,5.523e-05,2]
[426281525,1782240583000,-500.0,5.523e-05,2]
[426281534,1782240604000,-19.09514226,5.523e-05,2]
[426281535,1782240608000,-160.0,5.523e-05,2]
[426281537,1782240608000,-174.03440524,5.523e-05,2]
[426281538,1782240608000,-150.0,5.523e-05,2]
[426281536,1782240608000,-250.0,5.523e-05,2]
[426281539,1782240608000,-648.60202756,5.524e-05,2]
[426281542,1782240608000,-2605.31759708,5.527e-05,2]
[426281543,1782240608000,-541.0473591,5.527e-05,2]
[426281541,1782240608000,-160.0,5.526e-05,2]
[426281540,1782240608000,-216.39158367,5.526e-05,2]
[426281549,1782240632000,-577.10608931,5.527e-05,2]
[426281551,1782240632000,-150.0,5.581e-05,2]
[426281550,1782240632000,-1965.47895451,5.527e-05,2]
[426281552,1782240632000,-54078.87079806,5.602e-05,2]
[426281557,1782240632000,-150.0,5.691e-05,2]
[426281554,1782240632000,-192731.03063612,5.602e-05,2]
[426281553,1782240632000,-157377.50207687,5.602e-05,2]
[426281556,1782240632000,-250.0,5.65e-05,2]
[426281555,1782240632000,-150.0,5.636e-05,2]
[426281559,1782240632000,-184.0,5.802e-05,2]
[426281566,1782240632000,-500.0,6.11e-05,2]
[426281564,1782240632000,-255.0,6.075e-05,2]
[426281561,1782240632000,-250.0,5.996e-05,2]
[426281572,1782240632000,-2552.31753259,6.214e-05,2]
[426281570,1782240632000,-31394.5117204,6.214e-05,2]
[426281562,1782240632000,-200.0,6e-05,2]
[426281573,1782240632000,-305.16142341,6.214e-05,2]
[426281568,1782240632000,-304.0,6.214e-05,2]
[426281571,1782240632000,-2020.12577,6.214e-05,2]
[426281560,1782240632000,-317.84,5.97e-05,2]
[426281565,1782240632000,-328.0076,6.099e-05,2]
[426281567,1782240632000,-69769.4268011,6.214e-05,2]
[426281558,1782240632000,-150.0,5.747e-05,2]
[426281563,1782240632000,-250.0,6.075e-05,2]
[426281569,1782240632000,-503.70314734,6.214e-05,2]
[426281588,1782240638000,-1395.33024752,6.214e-05,2]
[426281584,1782240638000,-15064.58958487,6.214e-05,2]
[426281585,1782240638000,-10011.052,6.214e-05,2]
[426281586,1782240638000,-1075.43770971,6.214e-05,2]
[426281583,1782240638000,-334.16208862,6.214e-05,2]
[426281587,1782240638000,-685.245737,6.214e-05,2]
[426281590,1782240638000,-546.5620858,6.214e-05,2]
[426281595,1782240638000,-9337.16456508,6.214e-05,2]
[426281591,1782240638000,-1125.0,6.214e-05,2]
[426281593,1782240638000,-3432.04290515,6.214e-05,2]
[426281592,1782240638000,-2232.81231622,6.214e-05,2]
[426281600,1782240638000,-211.67278144,6.384e-05,2]
[426281597,1782240638000,-17786.3953416,6.214e-05,2]
[426281599,1782240638000,-166.59,6.215e-05,2]
[426281589,1782240638000,-941.35436519,6.214e-05,2]
[426281750,1782240640000,-471.04491439,6.423e-05,2]
[426281758,1782240640000,-300.0,6.423e-05,2]
[426281787,1782240640000,-1197.957433,6.423e-05,2]
[426281748,1782240640000,-288.32721856,6.384e-05,2]
[426281909,1782240641000,-172.26748682,8e-05,2]
[426281922,1782240641000,-151.0,8.141e-05,2]
[426281912,1782240641000,-400.0,8e-05,2]
[426281905,1782240641000,-317.84,7.96e-05,2]
[426281918,1782240641000,-151.0,8.141e-05,2]
[426281899,1782240641000,-715.0,7.351e-05,2]
[426281914,1782240641000,-147962.5,8.141e-05,2]
[426281916,1782240641000,-147962.5,8.141e-05,2]
[426281903,1782240641000,-161.15,7.776e-05,2]
[426281920,1782240641000,-151.0,8.141e-05,2]
[426281907,1782240641000,-1000.0,8e-05,2]
[426281924,1782240641000,-252.087428,8.141e-05,2]
[426281943,1782240641000,-500.0,8.219e-05,2]
[426281928,1782240641000,-500.0,8.192e-05,2]
[426281936,1782240641000,-500.0,8.219e-05,2]
[426281934,1782240641000,-500.0,8.219e-05,2]
[426281900,1782240641000,-341.0546193,7.593e-05,2]
[426281930,1782240641000,-500.0,8.219e-05,2]
[426281932,1782240641000,-500.0,8.219e-05,2]
[426281938,1782240641000,-500.0,8.219e-05,2]
[426281937,1782240641000,-500.0,8.219e-05,2]
[426281941,1782240641000,-500.0,8.219e-05,2]
[426281942,1782240641000,-500.0,8.219e-05,2]
[426281940,1782240641000,-500.0,8.219e-05,2]
[426281939,1782240641000,-500.0,8.219e-05,2]
[426281926,1782240641000,-1965.00415,8.178e-05,2]
[426281887,1782240641000,-167.04,6.927e-05,2]
[426281891,1782240641000,-161.15,7.069e-05,2]
[426281885,1782240641000,-166.59,6.728e-05,2]
[426281847,1782240641000,-151.0,6.423e-05,2]
[426281840,1782240641000,-128585.64684294,6.423e-05,2]
[426281842,1782240641000,-147962.5,6.423e-05,2]
[426281851,1782240641000,-151.0,6.423e-05,2]
[426281849,1782240641000,-151.0,6.423e-05,2]
[426281853,1782240641000,-203.86026953,6.431e-05,2]
[426281855,1782240641000,-151.0,6.446e-05,2]
[426281845,1782240641000,-151.0,6.423e-05,2]
[426281858,1782240641000,-151.0,6.446e-05,2]
[426281860,1782240641000,-4999.99,6.446e-05,2]
[426281864,1782240641000,-9999.99,6.446e-05,2]
[426281863,1782240641000,-150.99,6.446e-05,2]
[426281897,1782240641000,-317.84,7.297e-05,2]
[426281869,1782240641000,-9999.99,6.446e-05,2]
[426281871,1782240641000,-499.99,6.446e-05,2]
[426281862,1782240641000,-9999.99,6.446e-05,2]
[426281873,1782240641000,-9999.99,6.446e-05,2]
[426281874,1782240641000,-166.59,6.472e-05,2]
[426281865,1782240641000,-999.99,6.446e-05,2]
[426281878,1782240641000,-317.84,6.634e-05,2]
[426281877,1782240641000,-150.0,6.5e-05,2]
[426281880,1782240641000,-433.0,6.682e-05,2]
[426281882,1782240641000,-160.0,6.703e-05,2]
[426281889,1782240641000,-166.59,6.985e-05,2]
[426281895,1782240641000,-166.59,7.241e-05,2]
[426281893,1782240641000,-500.0,7.123e-05,2]
[426281867,1782240641000,-192.61,6.446e-05,2]
[426281945,1782240641000,-500.0,8.219e-05,2]
[426281956,1782240641000,-500.0,8.219e-05,2]
[426281950,1782240641000,-500.0,8.219e-05,2]
[426281973,1782240641000,-500.0,8.219e-05,2]
[426281977,1782240641000,-500.0,8.219e-05,2]
[426281978,1782240641000,-500.0,8.219e-05,2]
[426281981,1782240641000,-500.0,8.219e-05,2]
[426281982,1782240641000,-500.0,8.219e-05,2]
[426281984,1782240641000,-500.0,8.219e-05,2]
[426281990,1782240641000,-2151.44,8.219e-05,2]
[426281986,1782240641000,-616.0,8.219e-05,2]
[426281991,1782240641000,-180.69,8.219e-05,2]
[426281988,1782240641000,-500.0,8.219e-05,2]
[426281992,1782240641000,-2000.0,8.219e-05,2]
[426281987,1782240641000,-174.87,8.219e-05,2]
[426281974,1782240641000,-500.0,8.219e-05,2]
[426281983,1782240641000,-500.0,8.219e-05,2]
[426281996,1782240641000,-153030.0,8.907e-05,2]
[426282000,1782240641000,-500.0,9.041e-05,2]
[426281993,1782240641000,-161.15,8.483e-05,2]
[426281997,1782240641000,-17786.3953416,8.907e-05,2]
[426281994,1782240641000,-500.0,8.493e-05,2]
[426281995,1782240641000,-500.0,8.767e-05,2]
[426281999,1782240641000,-500.0,9.041e-05,2]
[426281998,1782240641000,-305.28458251,8.92e-05,2]
[426282001,1782240641000,-596.214787,9.041e-05,2]
[426282003,1782240641000,-1000.0,9.241e-05,2]
[426282002,1782240641000,-704.95862117,9.184e-05,2]
[426281949,1782240641000,-500.0,8.219e-05,2]
[426281985,1782240641000,-500.0,8.219e-05,2]
[426281971,1782240641000,-500.0,8.219e-05,2]
[426281989,1782240641000,-4531.71,8.219e-05,2]
[426281976,1782240641000,-500.0,8.219e-05,2]
[426281972,1782240641000,-500.0,8.219e-05,2]
[426281952,1782240641000,-500.0,8.219e-05,2]
[426281955,1782240641000,-500.0,8.219e-05,2]
[426281953,1782240641000,-500.0,8.219e-05,2]
[426281954,1782240641000,-500.0,8.219e-05,2]
[426281951,1782240641000,-500.0,8.219e-05,2]
[426281947,1782240641000,-500.0,8.219e-05,2]
[426281946,1782240641000,-500.0,8.219e-05,2]
[426281948,1782240641000,-500.0,8.219e-05,2]
[426281957,1782240641000,-500.0,8.219e-05,2]
[426281961,1782240641000,-500.0,8.219e-05,2]
[426281966,1782240641000,-500.0,8.219e-05,2]
[426281967,1782240641000,-177.94680643,8.219e-05,2]
[426281944,1782240641000,-500.0,8.219e-05,2]
[426281958,1782240641000,-150.0,8.219e-05,2]
[426281960,1782240641000,-500.0,8.219e-05,2]
[426281975,1782240641000,-500.0,8.219e-05,2]
[426281968,1782240641000,-500.0,8.219e-05,2]
[426281979,1782240641000,-250.17756875,8.219e-05,2]
[426281980,1782240641000,-500.0,8.219e-05,2]
[426281969,1782240641000,-500.0,8.219e-05,2]
[426281970,1782240641000,-500.0,8.219e-05,2]
[426281964,1782240641000,-500.0,8.219e-05,2]
[426281959,1782240641000,-500.0,8.219e-05,2]
[426281962,1782240641000,-500.0,8.219e-05,2]
[426281963,1782240641000,-500.0,8.219e-05,2]
[426281965,1782240641000,-500.0,8.219e-05,2]
[426282042,1782240642000,-500.0,0.00010137,2]
[426282040,1782240642000,-212.07665409,0.00010024,2]
[426282043,1782240642000,-350.0,0.00010161,2]
[426282033,1782240642000,-2000.0,0.0001,2]
[426282048,1782240642000,-158.4189738,0.00010339,2]
[426282037,1782240642000,-1000.0,0.0001,2]
[426282038,1782240642000,-1000.0,0.0001,2]
[426282035,1782240642000,-1000.0,0.0001,2]
[426282034,1782240642000,-370.88973762,0.0001,2]
[426282036,1782240642000,-1000.0,0.0001,2]
[426282044,1782240642000,-2000.0,0.000102,2]
[426282051,1782240642000,-2000.0,0.000104,2]
[426282041,1782240642000,-1892.09,0.00010027,2]
[426282052,1782240642000,-350.0,0.00010424,2]
[426282046,1782240642000,-1892.09,0.00010278,2]
[426282047,1782240642000,-350.0,0.00010321,2]
[426282045,1782240642000,-2000.0,0.00010274,2]
[426282050,1782240642000,-350.0,0.00010377,2]
[426282054,1782240642000,-496.09422874,0.0001051,2]
[426282055,1782240642000,-671.2299,0.0001051,2]
[426282063,1782240642000,-1000.0,0.00010612,2]
[426282064,1782240642000,-350.0,0.00010615,2]
[426282053,1782240642000,-350.0,0.00010497,2]
[426282061,1782240642000,-2000.0,0.000106,2]
[426282056,1782240642000,-231.46575897,0.00010523,2]
[426282039,1782240642000,-168.54677461,0.00010013,2]
[426282049,1782240642000,-235.36248826,0.00010339,2]
[426282028,1782240642000,-217.54705075,0.0001,2]
[426282062,1782240642000,-350.0,0.00010612,2]